Cogmind - Beta 13 @@@ ROGUE MODE // 2024.04.12 @ 08:18:02 Player: m1m1c Result: Destroyed by G-47 Trooper with Particle Gun Performance ------------- Evolutions (3) 1500 Regions Visited (5) 1000 Robots Destroyed (27) 135 Value Destroyed (801) 801 Prototype IDs (4) 80 Alien Tech Used (0) 0 Bonus (0) 0 TOTAL SCORE: 3516 Bonus ------- None Cogmind --------- Core Integrity 0/700 Matter 69/300 Energy 41/310 System Corruption 11% Temperature Cool (70) Movement Flying (27) Location -7/Storage Parts ------- > --- POWER (1) -------- Heavy Deuterium Engine > --- PROPULSION (5) --- Flight Unit Cooled VTOL Module Cooled VTOL Module Cooled VTOL Module Cooled VTOL Module > --- UTILITY (5) ------ Medium Storage Unit Advanced Weight Redist. System Advanced Targeting Computer ECM Suite > --- WEAPON (2) ------- Mini Grenade Launcher > --- INVENTORY (10) --- Light Nuclear Core Enhanced Nuclear Core Carbon-fiber Leg Carbon-fiber Leg Improved Utility Shielding Tractor Beam Arc Projector Particle Gun Gauss Rifle Datajack Peak State ------------ > --- POWER ------------ Heavy Deuterium Engine > --- PROPULSION ------- Flight Unit Cooled VTOL Module Cooled VTOL Module Cooled VTOL Module Cooled VTOL Module > --- UTILITY ---------- Medium Storage Unit Advanced Weight Redist. System Advanced Targeting Computer ECM Suite > --- WEAPON ----------- Arc Projector Gauss Rifle > --- INVENTORY -------- Light Nuclear Core Enhanced Nuclear Core Carbon-fiber Leg Carbon-fiber Leg Improved Utility Shielding Tractor Beam Particle Gun Mini Grenade Launcher Datajack [Rating: 44] Favorites ----------- Power Light Nuclear Core Engine Light Ion Engine Power Core Light Nuclear Core Propulsion Carbon-fiber Leg Leg Carbon-fiber Leg Flight Unit Cooled VTOL Module Utility Advanced Targeting Computer Device Advanced Weight Redist. System Storage Small Storage Unit Processor Advanced Targeting Computer Protection Light Armor Plating Weapon EM Pulse Gun Energy Gun EM Pulse Gun Energy Cannon Light EM Pulse Cannon Ballistic Gun Gauss Rifle Ballistic Cannon Light Cannon Launcher Mini Grenade Launcher Build | -11 -10 -9 -8 -7 -7 ------- Run | Yrd Mat Mat Mat Fac Sto Slots Evolved 6 | . . 2 2 2 . Power . | . . . . . . Propulsion 3 | . . 1 1 1 . Utility 3 | . . 1 1 1 . Weapon . | . . . . . . Parts Attached 68 | 6 4 8 19 21 10 Power 11 | 1 . . 3 4 3 Engine 5 | 1 . . 2 . 2 Core 6 | . . . 1 4 1 Reactor . | . . . . . . Propulsion 21 | 2 2 3 5 9 . Treads . | . . . . . . Leg 13 | 2 . 3 4 4 . Wheel . | . . . . . . Hover . | . . . . . . Flight 8 | . 2 . 1 5 . Utility 18 | 1 . 2 7 4 4 Device 8 | . . 1 2 2 3 Storage 6 | 1 . 1 3 1 . Processor 2 | . . . 1 1 . Hackware . | . . . . . . Protection 2 | . . . 1 . 1 Artifact . | . . . . . . Weapon 18 | 2 2 3 4 4 3 Energy Gun 12 | 2 2 2 2 3 1 Energy Cannon 2 | . . 1 1 . . Ballistic Gun 2 | . . . . 1 1 Ballistic Cannon 1 | . . . 1 . . Launcher 1 | . . . . . 1 Special Weapon . | . . . . . . Impact Weapon . | . . . . . . Slashing Weapon . | . . . . . . Piercing Weapon . | . . . . . . Special Melee Weapon . | . . . . . . Unidentified Prototypes 4 | . . . . 2 2 Corrupted Parts 3 | . . . . 3 . System Corruption 10 | . . . . 10 . Parts Lost 25 | . 1 6 5 12 1 Power 5 | . . 1 1 3 . Propulsion 10 | . 1 3 1 5 . Utility 4 | . . 1 . 2 1 Weapon 6 | . . 1 3 2 . Highest Loss Streak 7 | . 1 6 2 7 1 To Critical Strikes . | . . . . . . Average Slot Usage (%) 77 | . 79 79 76 74 90 Engine 4 | . 14 8 3 . 7 Core 2 | . . . 2 6 . Leg 17 | . 19 20 21 16 . Flight 8 | . 8 . 2 9 38 Device 4 | . . 9 4 2 15 Storage 16 | . 14 21 17 15 13 Processor 8 | . . . 7 15 7 Protection 1 | . . . 4 . . Energy Gun 7 | . 22 12 2 5 6 Energy Cannon 2 | . . 6 3 . . Ballistic Cannon 2 | . . . 6 . . Naked Turns . | . . . . . . Heaviest Build 29 | 11 11 17 24 23 29 Greatest Support 75 | 20 20 20 60 75 33 Greatest Overweight (x) 4 | . 2 2 1 4 1 Average Overweight (x) . | . . . . . . Largest Inventory Capacity 10 | 8 8 8 10 10 10 Average Capacity 8 | 6 8 8 8 10 10 Most Carried 10 | 3 8 8 9 10 10 Average Carried 6 | 1 5 7 6 5 9 Final Capacity 10 | 8 8 8 10 10 10 Final Carried 10 | 3 8 8 8 9 10 Class Distribution -------------------- 73% | Mutant 11% | Scavenger-Mutant 8% | Scavenger-Sprinter 6% | Sprinter Dominant Class ---------------- Mutant | -10/Materials Mutant | -9/Materials Mutant | -8/Materials Mutant | -7/Factory Sprinter | -7/Storage Resources | -11 -10 -9 -8 -7 -7 ----------- Run | Yrd Mat Mat Mat Fac Sto Matter Collected 761 | 225 35 72 332 97 . Remotely . | . . . . . . Salvage Created 1044 | . 44 99 367 446 88 Parts 55 | . 8 4 21 15 7 Haulers Intercepted 3 | . . . 2 . 1 Recyclers Shooed . | . . . . . . Parts Field Recycled . | . . . . . . Retrieved Matter . | . . . . . . Parts Self-Destructed . | . . . . . . Prevented . | . . . . . . Kills | -11 -10 -9 -8 -7 -7 ------- Run | Yrd Mat Mat Mat Fac Sto Combat Hostiles Destroyed 19 | . 3 . 7 8 1 Guns 9 | . 3 . . 6 . Cannons 6 | . . . 6 . . AOE 2 | . . . 1 . 1 Classes Destroyed 8 | . 1 2 3 2 . Hauler 3 | . . . 2 . 1 Recycler 2 | . . 1 1 . . Watcher 3 | . . 1 1 1 . Swarmer 6 | . 3 . 3 . . Grunt 7 | . . . 1 5 1 Sentry 3 | . . . 3 . . Hunter 2 | . . . . 2 . Programmer 1 | . . . . 1 . Best Kill Streak 5 | . 3 2 5 3 2 Combat Bots Only 3 | . 3 . 3 3 1 Max Kills in Single Turn 1 | . 1 1 1 1 1 Gunslinging . | . . . . . . Exploded 1 | . . . 1 . 1 Melee . | . . . . . . Uniques/NPCs Destroyed . | . . . . . . Combat | -11 -10 -9 -8 -7 -7 -------- Run | Yrd Mat Mat Mat Fac Sto Hostile Shots Fired 398 | . 23 87 55 199 34 Missed 155 | . 7 29 20 78 21 Damage Taken 3416 | . 156 727 465 1873 195 Core 1058 | . 19 271 52 665 51 Absorbed by Shields 223 | . . 117 . 106 . Core Remaining (%) 78 | 100 92 32 90 . . Volleys Fired 111 | . 5 4 47 47 8 Largest 2 | . 2 2 2 2 1 Hottest 96 | . 80 96 96 93 55 Shots Fired 136 | . 9 8 56 54 9 Gun 80 | . 9 4 5 54 8 Cannon 55 | . . 4 51 . . Launcher 1 | . . . . . 1 Special . | . . . . . . Kinetic 49 | . . . 42 5 2 Thermal 23 | . 4 . . 19 . Explosive 1 | . . . . . 1 Electromagnetic 63 | . 5 8 14 30 6 Robot Hit Streak 18 | . 3 3 13 18 5 Robot Miss Streak 4 | . 2 3 4 2 1 Penetration Max . | . . . . . . Secondary Targets 1 | . 1 . . . . Max Gunslinging Chain 1 | . 1 . . . . Shots Hit Robots 94 | . 4 4 39 41 6 Core Hits 43 | . 3 3 16 16 5 Critical Kills . | . . . . . . Critical Parts Destroyed . | . . . . . . Critical Strikes 3 | . . . 2 1 . Burn 1 | . . . . 1 . Blast 2 | . . . 2 . . Melee Attacks . | . . . . . . Impact . | . . . . . . Slashing . | . . . . . . Piercing . | . . . . . . Sneak Attacks . | . . . . . . Combat Hostiles . | . . . . . . Follow-up Attacks . | . . . . . . Damage Inflicted 1993 | . 82 113 847 751 200 Guns 958 | . 55 12 38 751 102 Cannons 779 | . . 101 678 . . Explosions 256 | . 27 . 131 . 98 Melee . | . . . . . . Ramming . | . . . . . . Kinetic 638 | . . . 501 94 43 Thermal 429 | . 39 . 131 259 . Explosive 98 | . . . . . 98 Electromagnetic 828 | . 43 113 215 398 59 Impact . | . . . . . . Slashing . | . . . . . . Piercing . | . . . . . . Highest Corruption 11 | . . 5 . 11 11 Average Corruption 9 | . . 4 . 10 11 Corruption Purged . | . . . . . . Corruption Blocked . | . . . . . . Effects 24 | . . 1 . 15 8 Message Errors 4 | . . . . 3 1 Matter Fused 5 | . . . . 3 2 Heat Flow Errors 1 | . . . . . 1 Energy Discharges 1 | . . . . 1 . Data Loss (minor) 2 | . . 1 . 1 . Data Loss (major) 2 | . . . . 2 . Misfires 4 | . . . . 3 1 Alerts 1 | . . . . 1 . Misdirections 4 | . . . . 1 3 Overload Shots . | . . . . . . Overflow Damage 9 | . . 8 1 . . Projectiles 9 | . . 8 1 . . Explosions . | . . . . . . Melee . | . . . . . . Knockbacks 2 | . . . 2 . . Impact . | . . . . . . Kinetic 2 | . . . 2 . . Secondary . | . . . . . . Self-Inflicted Damage . | . . . . . . Shots . | . . . . . . Rammed . | . . . . . . Targets Rammed 1 | . . 1 . . . Kicked 1 | . . 1 . . . Crushed . | . . . . . . Highest Temperature 267 | . 72 54 57 76 267 Average Temperature 40 | . 34 21 24 37 72 Received Heat Transfer 1328 | . 45 263 180 738 102 Siege Activations . | . . . . . . Robots Corrupted 1 | . . . . 1 . Combat Hostiles 1 | . . . . 1 . Parts Fried 4 | . . 1 1 2 . Impact Corruptions . | . . . . . . Robots Melted 1 | . . . . 1 . Combat Hostiles 1 | . . . . 1 . Parts Melted 2 | . . . . 2 . Heat Transferred 891 | . 75 . 150 666 . Parts Sabotaged . | . . . . . . Parts Stolen . | . . . . . . Parts Stripped . | . . . . . . Power Chain Reactions 2 | . 1 . 1 . . Alert | -11 -10 -9 -8 -7 -7 ------- Run | Yrd Mat Mat Mat Fac Sto Peak Influence 318 | . 103 116 318 305 274 Initial 138 | . . 39 27 65 138 Average 96 | . 39 73 131 91 155 Maximum Alert Level 1 | . . . 1 1 1 Low Security (%) 90 | 100 100 100 81 91 89 Level 1 9 | . . . 18 8 10 Level 2 . | . . . . . . Level 3 . | . . . . . . Level 4 . | . . . . . . Level 5 . | . . . . . . High Security . | . . . . . . Max Security . | . . . . . . Squads Dispatched 12 | . 2 . 3 4 3 Investigation 3 | . 1 . . 2 . Extermination 1 | . . . . 1 . Reinforcement 8 | . 1 . 3 1 3 Assault . | . . . . . . Garrison . | . . . . . . Intercept . | . . . . . . Searches Triggered . | . . . . . . Construction Impeded . | . . . . . . Haulers Reinforced 1 | . . . . . 1 Active Scanning Responses . | . . . . . . Cargo Convoy Interrupts . | . . . . . . Stealth | -11 -10 -9 -8 -7 -7 --------- Run | Yrd Mat Mat Mat Fac Sto Distress Signals 8 | . 1 1 4 1 1 Communications Jammed . | . . . . . . Distress Signals . | . . . . . . Times Spotted 77 | . 7 9 17 28 16 Peak Tracking Total 11 | . 3 6 4 9 11 Tactical Retreats 9 | . . . 2 5 2 Traps | -11 -10 -9 -8 -7 -7 ------- Run | Yrd Mat Mat Mat Fac Sto Traps Triggered 7 | . . 3 . 4 . Indirectly . | . . . . . . Trap Hack Attempts . | . . . . . . Triggered . | . . . . . . Disarmed . | . . . . . . Reprogrammed . | . . . . . . Reused . | . . . . . . Traps Extracted . | . . . . . . Installed . | . . . . . . Triggered . | . . . . . . Machines | -11 -10 -9 -8 -7 -7 ---------- Run | Yrd Mat Mat Mat Fac Sto Machines Disabled 2 | . . 1 1 . . Max in Single Turn 1 | . . 1 1 . . Machines Repaired . | . . . . . . Machines Dismantled . | . . . . . . Machines Sabotaged . | . . . . . . Overloaded Fab Kills . | . . . . . . Hacking | -11 -10 -9 -8 -7 -7 --------- Run | Yrd Mat Mat Mat Fac Sto Machines Accessed 4 | . . . 1 2 1 Terminals 4 | . . . 1 2 1 Fabricators . | . . . . . . Repair Stations . | . . . . . . Recycling Units . | . . . . . . Scanalyzers . | . . . . . . Garrison Access . | . . . . . . Total Hacks 8 | . . . 2 4 2 Successful 5 | . . . 1 3 1 Failed 3 | . . . 1 1 1 Catastrophic 1 | . . . . 1 . Database Lockouts . | . . . . . . Manual . | . . . . . . Terminals 8 | . . . 2 4 2 Fabricators . | . . . . . . Repair Stations . | . . . . . . Recycling Units . | . . . . . . Scanalyzers . | . . . . . . Garrison Access . | . . . . . . Terminal Hacks 5 | . . . 1 3 1 Open Door 1 | . . . . . 1 Alert Level 2 | . . . . 2 . Unreport Threat 1 | . . . . 1 . Hauler Manifests 1 | . . . 1 . . Fabricator Hacks . | . . . . . . Repair Station Hacks . | . . . . . . Recycling Unit Hacks . | . . . . . . Scanalyzer . | . . . . . . Garrison Access Hacks . | . . . . . . Unauthorized Hacks . | . . . . . . Terminals . | . . . . . . Fabricators . | . . . . . . Repair Stations . | . . . . . . Recycling Units . | . . . . . . Scanalyzers . | . . . . . . Garrison Access . | . . . . . . Data Cores Recovered . | . . . . . . Used . | . . . . . . Hacking Detections 3 | . . . . 2 1 Full Trace Events 1 | . . . . 1 . Feedback Events . | . . . . . . Feedback Blocked . | . . . . . . Robot Schematics Acquired . | . . . . . . Robots Built . | . . . . . . Authchips . | . . . . . . Time . | . . . . . . Total Robot Build Rating . | . . . . . . Part Schematics Acquired . | . . . . . . Parts Built . | . . . . . . Authchips . | . . . . . . Time . | . . . . . . Total Part Build Rating . | . . . . . . Parts Repaired . | . . . . . . Time . | . . . . . . Parts Recycled . | . . . . . . Recycled Matter . | . . . . . . Retrieved Matter . | . . . . . . Retrieved Components . | . . . . . . Parts Scanalyzed . | . . . . . . Part Schematics Acquired . | . . . . . . Parts Damaged . | . . . . . . Bothacking | -11 -10 -9 -8 -7 -7 ------------ Run | Yrd Mat Mat Mat Fac Sto Used RIF Installer . | . . . . . . Robots Hacked . | . . . . . . Non-combat . | . . . . . . Combat . | . . . . . . Robot Hacks Applied . | . . . . . . Relay Couplers Released . | . . . . . . Fabnet Peak Effective % . | . . . . . . Robots Rewired . | . . . . . . Allies Hacked . | . . . . . . Hacks Repelled . | . . . . . . Allies | -11 -10 -9 -8 -7 -7 -------- Run | Yrd Mat Mat Mat Fac Sto Total Allies . | . . . . . . Largest Group . | . . . . . . Highest-Rated Group . | . . . . . . Highest-Rated Ally . | . . . . . . Total Orders . | . . . . . . Ally Attacks . | . . . . . . Total Damage . | . . . . . . Kills . | . . . . . . Allies Corrupted . | . . . . . . Allies Melted . | . . . . . . Intel | -11 -10 -9 -8 -7 -7 ------- Run | Yrd Mat Mat Mat Fac Sto Robot Analysis Total . | . . . . . . Derelict Logs Recovered . | . . . . . . Drone Launches . | . . . . . . Drone Recoveries . | . . . . . . Exploration | -11 -10 -9 -8 -7 -7 ------------- Run | Yrd Mat Mat Mat Fac Sto Turns Passed 1811 | 98 170 260 549 592 142 Spaces Moved 1814 | 75 164 190 324 668 393 Core 31 | 5 . 17 . 9 . Treads . | . . . . . . Legs 823 | 70 85 173 305 190 . Wheels . | . . . . . . Hover . | . . . . . . Flight 960 | . 79 . 19 469 393 Fastest Speed 23 | 50 37 100 120 24 23 Average Speed 73 | 115 89 119 120 56 26 Slowest Speed 250 | 120 200 150 190 250 95 Overloaded Moves 1 | . . . . . 1 Propulsion Burnouts . | . . . . . . Robots Hopped 16 | . . . . 8 8 Cave-ins Triggered . | . . . . . . Exploration Rate (%) 22 | 4 27 17 21 14 52 Regions Visited 5 Branch Regions 1 Pre-discovered Areas . | . . . . . . Known Exits Taken . | . . . . . . Unknown Exits Taken 5 | 1 1 1 1 1 . Scrap Searched . | . . . . . . Spaces Dug . | . . . . . . Terrain Destroyed 17 | . 3 . 2 . 12 Melee . | . . . . . . Projectile . | . . . . . . AOE 17 | . 3 . 2 . 12 Terrain Rammed . | . . . . . . Walls Destroyed . | . . . . . . Machines Disabled . | . . . . . . Actions | -11 -10 -9 -8 -7 -7 --------- Run | Yrd Mat Mat Mat Fac Sto Total 2139 | 83 179 214 425 823 415 Wait 98 | . . 4 23 71 . Move 1778 | 74 163 189 323 652 377 Hop 15 | . . . . 7 8 Pick Up 29 | 3 4 5 7 8 2 Fast Attach 27 | 6 . 2 7 7 5 Attach 34 | . 2 5 11 13 3 Detach 18 | . 3 1 4 6 4 Swap 7 | . 2 1 1 1 2 Drop 10 | . . 2 2 . 6 Fire 111 | . 5 4 47 47 8 Melee . | . . . . . . Ram . | . . . . . . Kick 1 | . . 1 . . . Crush . | . . . . . . Escape Stasis 11 | . . . . 11 . Rewire . | . . . . . . Trap . | . . . . . . Miscellaneous . | . . . . . . Route ------- -11/Scrapyard -10/Materials -9/Materials -8/Materials -7/Factory -7/Storage History --------- Turn | Location | Event 13 | -11/Scrapyard | Discovered new exit (range 15) 99 | -11/Scrapyard | Entered Materials 242 | -10/Materials | Discovered new exit (range 8) 269 | -10/Materials | Entered another Materials area 269 | -9/Materials | Evolved 2 slots: Propulsion x1, Utility x1 313 | -9/Materials | Build established: Mutant 512 | -9/Materials | Discovered new exit (range 15) 513 | -9/Materials | Core integrity fell below 50% 529 | -9/Materials | Entered another Materials area 529 | -8/Materials | Evolved 2 slots: Propulsion x1, Utility x1 549 | -8/Materials | Lost 6 parts (1p3n1u1w) 1046 | -8/Materials | Discovered new exit (range 10) 1078 | -8/Materials | Entered Factory 1078 | -7/Factory | Evolved 2 slots: Propulsion x1, Utility x1 1213 | -7/Factory | Lost 7 parts (1p3n2u1w) 1262 | -7/Factory | Core integrity fell below 50% 1284 | -7/Factory | Core integrity fell below 20% 1291 | -7/Factory | Lost 4 parts (1p2n1w) 1317 | -7/Factory | System corruption reached 10% 1669 | -7/Factory | Discovered new exit (range 4) 1670 | -7/Factory | Entered Storage 1812 | -7/Storage | Destroyed by G-47 Trooper with Particle Gun Last Messages --------------- O-24 Administrator uses terminal to summon reinforcements. ALERT: Hostiles spotted, dispatching reinforcements to Terminal S010. O-24 Administrator locks terminal. Destroyed System Restoration Module. System corrupted: Matter fused (-8). K-01 Serf collects debris. W-25 Informer sends out distress signal. Com. Battery destroyed. A-02 Transporter calls for reinforcements. ALERT: Hostile activity reported, dispatching reinforcements to area. System corrupted: Heat flow error (+277). Slug penetrates A-02 Transporter. A-02 Transporter destroyed. Identified Mni. Grenade Launcher. ALERT: Hostiles spotted, dispatching reinforcements to Terminal S003. G-47 Trooper destroyed. Map ----- +----------------------------------------------------+ | | | | | | | | | ?????????????????????????????????????? | | ?????????????????????????????????????? | | ?????????????????????????????????????? | | ?????????????????????????????????????? | | ?????????????????????????????????????? | | ?????????????????????????????????????? | | ?????????????????????????????????????? | | ?????????????????????????????????????? | | ?????????????????????????????????????? | | ?????????????????????????????????????? | | ?????????????????????????????????????? | | ????????????""""?????????????????????? | | ???????????## #?????????????????????? | | ???????????#T #?????????????????????? | | ???########## ##########????????????? | | ???# # # #????????????? | | ???# """ + + #????????????? | | ???# """ # # #????????????? | | ???? """ # !#"""" #????????????? | | ???# ?#=*#"""" #????????????? | | ???# """ ?#*%#"""" #????????????? | | ???# """ ??#@*#"""" #????????????? | | ?????""" ??#!*# #????????????? | | ????? ???# # #???????????? | | ???######???# #????######???????????? | | ???# # #?????????????????????? | | ????""" + #?????????????????????? | | ????""" #?????????????????????? | | ????""" ???? ???????????????? | | ???? ? ??"" "???????????????? | | ???#""" ? """ ""??????????????? | | ?????"" ?? ! Y """ ""??????????????? | | ?????"" ??? gg ???????????? | | ????? ??? = # ?#########????? ???? | | ?????###????# u# ?????????????? ???? | | ????????????# # "???????????? #### | | ????????????+ # "???????????? | | ????????????# # "???????????? # | | ????????????# + "??""" #?????? # | | ????????????## # #??????? # | | ?????????????# # #???????# # | | ?????????????# + #???????# # | | ?????????????# # #???????# # | | ???????####### ##########???????# # | | ??????# + ##########?# # | | ??????# # ##=== #?# | +----------------------------------------------------+ Best States ------------- Heat Dissipation 34 Energy Generation 18 Energy Capacity 510 Matter Stores 300 Matter Capacity 300 Sight Range 16 Terrain Scan Density 10 ECM Strength 1 Additional Mass Support 9 Armor Coverage 150 Utility Shielding 66 Evasion (%) 65 Targeting Accuracy 8 Item Schematics ----------------- None Robot Schematics ------------------ None Fabricated ------------ Nothing Alien Tech Used ----------------- None Achievements -------------- Can't Catch Me Challenges ------------ None Game ------ Seed DeepWaveSegregator Manual? 0 Play Time 00:27:59 Cumulative 11.9 hours Start 2024.04.12 @ 07:47:30 End 2024.04.12 @ 08:18:02 Sessions 1 Manual Loads 0 Difficulty Rogue Special Mode None Game No. 44 Rogue 44 Adventurer 0 Explorer 0 Win Type - Total 0 Types 0/0/0/0/0/0/0/0/0 Lore% 11 Gallery% 18 Achievement% 17 Wizard Run 0 Options --------- Layout 1 ASCII 1 Keyboard 0 Movement Arrows Keybinds 0 Fullscreen 1 Font 18/SmallcapsGlow Map View 50x40 Zoom Use 0% Tactical HUD 0 Map Filters NONE Filters NONE Steam 1 RUN: 1036380c-063d-4dd3-93fb-5c213ad53509